bitfinex/quotes_ETHUSD_20250507
["timestamp","ask_amount","ask_price","bid_price","bid_amount"]
[1746654278648,11.56037032,1804.6,1804.2,6.32541576]
[1746654278984,5.54151235,1804.6,1804.2,6.3251795]
[1746654279762,5.5399279,1805.1,1804.3,5.54220696]
[1746654279763,5.54090805,1804.8,1804.3,5.54220696]
[1746654280068,5.54068729,1804.9,1804.5,0.7828]
[1746654280480,5.54068729,1804.9,1804.5,6.32445104]
[1746654280850,5.54030081,1805.0,1804.7,0.7828]
[1746654281048,5.54000288,1805.1,1804.7,0.7828]
[1746654281262,5.54016769,1805.0,1804.7,0.7828]
[1746654281647,0.23085172,1804.9,1804.7,0.7828]
[1746654282073,5.53997094,1805.1,1804.7,0.7828]
[1746654282368,0.23085172,1805.0,1804.7,0.83820415]
[1746654283087,0.23085172,1805.0,1804.8,0.7584]
[1746654285258,0.23085172,1805.0,1804.9,5.696]
[1746654285460,0.23085172,1805.0,1804.9,6.34144]
[1746654285756,0.23085172,1805.0,1804.9,7.11704]
[1746654287338,0.23085172,1805.0,1804.9,7.66704]
[1746654287542,5.33943775,1805.3,1804.9,6.89144]
[1746654287773,5.53968503,1805.2,1805.0,0.7974]
[1746654289282,11.07821944,1805.4,1805.0,6.33750986]
[1746654289458,11.07821944,1805.4,1805.1,0.63375099]
[1746654289777,5.53930054,1805.3,1805.1,0.63375099]
[1746654290783,5.5395524,1805.2,1805.1,0.63375099]
[1746654291523,5.5395524,1805.2,1805.0,3.7974]
[1746654291692,11.07939964,1805.2,1805.0,3.7974]
[1746654291987,5.53985928,1805.1,1805.0,0.7974]
[1746654293090,5.5401662,1805.0,1804.9,5.696]
[1746654293462,5.54047315,1804.9,1804.6,3.7572]
[1746654293662,5.54047315,1804.9,1804.7,0.60912164]
[1746654296115,0.23124024,1804.8,1804.7,0.60912164]
[1746654296311,5.54047315,1804.9,1804.7,0.60912164]
[1746654296469,0.23124024,1804.8,1804.7,0.60912164]
[1746654296819,5.54047315,1804.9,1804.7,0.60912164]
[1746654296970,0.23124024,1804.8,1804.7,0.60912164]
[1746654297386,5.54047315,1804.9,1804.7,0.60912164]
[1746654297587,0.23131386,1804.8,1804.7,0.60912164]
[1746654297881,5.54093035,1804.8,1804.4,1.3272207]
[1746654298215,11.31397159,1804.7,1804.4,7.0202207]
[1746654298413,5.54142112,1804.6,1804.4,7.0202207]
[1746654298912,0.23131386,1804.5,1804.4,7.0202207]
[1746654300471,5.54122638,1804.7,1804.4,7.0202207]
[1746654300673,0.22932569,1804.6,1804.5,0.70202207]
[1746654300992,5.54122638,1804.7,1804.5,0.70202207]
[1746654301287,0.22932569,1804.6,1804.5,0.70202207]
[1746654301530,11.08260576,1804.7,1804.5,0.70202207]
[1746654301668,5.7707199,1804.6,1804.5,0.70202207]
[1746654302017,0.22932569,1804.6,1804.5,7.54382337]
[1746654302203,5.53975941,1805.2,1804.9,0.7501]
[1746654302400,5.53975941,1805.2,1804.9,12.66803448]
[1746654302602,0.18760115,1805.1,1805.0,6.0901662]
[1746654302819,0.18760115,1805.1,1805.0,9.8402662]
[1746654303022,5.53901982,1805.4,1805.0,10.14875954]
[1746654303202,0.18760115,1805.1,1805.0,10.14875954]
[1746654303408,0.18760115,1805.1,1805.0,12.92579448]
[1746654303608,5.53865608,1805.5,1805.1,6.28966606]
[1746654303800,5.53865608,1805.5,1805.1,11.82929085]
[1746654303995,5.53848961,1805.6,1805.2,5.53952052]
[1746654304221,11.07708672,1805.6,1805.3,5.693]
[1746654304427,5.53848961,1805.6,1805.3,6.81625205]
[1746654305337,5.53863819,1805.5,1805.3,6.81625205]
[1746654306550,5.53848961,1805.6,1805.3,6.81625205]
[1746654306839,11.07704904,1805.6,1805.3,6.81625205]
[1746654307004,5.538543,1805.6,1805.3,6.81625205]
[1746654307337,11.07715599,1805.6,1805.3,6.81625205]
[1746654307536,5.53867441,1805.5,1805.3,6.81625205]
[1746654307838,5.53771181,1805.8,1805.4,0.68162521]
[1746654308000,5.53856648,1805.6,1805.3,6.81625205]
[1746654308533,11.07713709,1805.6,1805.3,6.81625205]
[1746654308731,5.53856648,1805.6,1805.4,0.7999]
[1746654308937,11.07717338,1805.6,1805.4,0.7999]
[1746654309239,5.53863195,1805.5,1805.4,0.7999]
[1746654309946,5.7262331,1805.5,1805.4,0.7999]
[1746654313067,5.7262331,1805.5,1805.4,1.56151521]
[1746654315271,0.18760115,1805.5,1805.4,1.56151521]
[1746654315441,0.18760115,1805.5,1805.4,0.76161521]
[1746654315442,5.7262331,1805.5,1805.4,0.76161521]
[1746654315641,11.26510481,1805.5,1805.1,9.30754179]
[1746654315968,5.53895678,1805.4,1805.2,0.308395]
[1746654316173,5.73901636,1805.4,1805.2,0.308395]
[1746654316323,5.53924555,1805.3,1805.2,0.308395]
[1746654316731,5.73930513,1805.3,1805.2,0.308395]
[1746654317028,5.73930513,1805.3,1805.1,3.0]
[1746654318131,5.73930513,1805.3,1805.1,3.30846138]
[1746654319750,0.20005958,1805.2,1805.1,3.30846138]
[1746654320731,11.07834024,1805.4,1805.1,3.30846138]
[1746654321062,0.20005958,1805.3,1805.1,3.30846138]
[1746654321222,0.20005958,1805.3,1805.1,4.76591281]
[1746654321423,5.53913908,1805.4,1805.1,4.76591281]
[1746654321637,0.20005958,1805.2,1805.1,4.76591281]
[1746654321838,5.53913908,1805.4,1805.1,4.76591281]
[1746654322061,0.20005958,1805.2,1805.1,4.76591281]
[1746654322264,5.53913908,1805.4,1805.1,4.76591281]
[1746654322426,0.20005958,1805.2,1805.1,4.76591281]
[1746654322622,5.53913908,1805.4,1805.1,4.76591281]
[1746654322824,0.20005958,1805.2,1805.1,4.76591281]
[1746654323028,5.53913908,1805.4,1805.1,4.76591281]
[1746654323241,0.20005958,1805.2,1805.1,4.76591281]
[1746654323463,5.53913908,1805.4,1805.1,4.76591281]
[1746654323662,0.20005958,1805.2,1805.1,4.76591281]
[1746654323865,5.53913908,1805.4,1805.1,4.76591281]
[1746654324078,0.20005958,1805.2,1805.1,4.76591281]
[1746654324564,5.53913908,1805.4,1805.1,4.76591281]
[1746654324728,0.20005958,1805.2,1805.1,4.76591281]
[1746654324925,5.53913908,1805.4,1805.1,4.76591281]
[1746654325129,0.20005958,1805.3,1805.1,4.76591281]
[1746654325334,5.53913908,1805.4,1805.1,4.76591281]
[1746654325536,0.20005958,1805.3,1805.1,4.76591281]
[1746654325841,5.53913908,1805.4,1805.1,4.76591281]
[1746654326038,0.20005958,1805.2,1805.1,4.76591281]
[1746654326232,5.53913908,1805.4,1805.1,4.76591281]
[1746654326436,0.20005958,1805.2,1805.1,4.76591281]
[1746654326667,5.53913908,1805.4,1805.1,4.76591281]
[1746654327069,0.20005958,1805.3,1805.2,1.25099128]
[1746654327256,0.20005958,1805.3,1805.2,6.84593533]
[1746654327765,5.53870613,1805.5,1805.2,7.15439671]
[1746654327936,0.20005958,1805.3,1805.2,7.15439671]
[1746654328138,5.53870613,1805.5,1805.2,7.15439671]
[1746654328453,0.19858578,1805.4,1805.2,7.15439671]
[1746654328650,5.53848462,1805.6,1805.3,0.71543967]
[1746654328651,11.0770922,1805.6,1805.3,0.71543967]
[1746654328853,0.19858578,1805.3,1805.2,6.79054368]
[1746654329053,11.0770922,1805.6,1805.2,6.79054368]
[1746654329254,0.19858578,1805.3,1805.2,6.79054368]
[1746654329454,11.0770922,1805.6,1805.2,6.79054368]
[1746654329655,0.19858578,1805.3,1805.2,6.79054368]
[1746654329854,5.53848462,1805.6,1805.2,6.79054368]
[1746654330155,5.53848462,1805.6,1805.3,0.67905437]
[1746654330453,5.53848462,1805.6,1805.4,5.726]
[1746654330980,5.53760688,1805.9,1805.6,0.759]
[1746654331270,5.53760688,1805.9,1805.6,6.29721033]
[1746654331475,5.53760688,1805.9,1805.7,0.93857802]
[1746654331664,5.53771181,1805.8,1805.7,0.30885699]
[1746654332683,5.53832521,1805.6,1805.5,0.30885699]
[1746654332980,6.34522521,1805.6,1805.5,0.82367549]
[1746654333574,6.34522521,1805.6,1805.5,0.5148185]
[1746654333947,5.53886798,1805.5,1805.3,0.5148185]
[1746654334278,5.53845252,1805.6,1805.3,0.5148185]
[1746654334478,5.53694339,1806.1,1805.4,0.7706]
[1746654334479,5.53818169,1805.7,1805.4,0.7706]
[1746654334671,5.53818169,1805.7,1805.5,5.725]
[1746654334852,5.53832521,1805.6,1805.5,6.2398185]
[1746654335246,5.53832521,1805.6,1805.5,0.5148185]
[1746654336479,5.5391206,1805.4,1805.2,5.688]
[1746654336772,5.5391206,1805.4,1805.2,6.70723859]
[1746654337378,5.5391206,1805.4,1805.3,0.51545424]
[1746654337677,5.5391206,1805.4,1805.3,0.8247959]
[1746654338457,5.53879562,1805.5,1805.3,0.8247959]
[1746654339287,5.53879562,1805.5,1805.4,0.51545424]
[1746654339488,5.53879562,1805.5,1805.4,0.8247959]
[1746654339692,6.30059562,1805.5,1805.4,0.8247959]
[1746654339858,5.53879562,1805.5,1805.4,0.8247959]
[1746654340053,5.53879562,1805.5,1805.4,0.30934166]
[1746654340273,5.53879562,1805.5,1805.3,0.8247959]
[1746654340467,5.53879562,1805.5,1805.3,1.47607549]
[1746654340701,5.53879562,1805.5,1805.4,0.51545424]
[1746654341196,5.93925309,1805.5,1805.4,1.27565424]
[1746654341413,0.40045747,1805.5,1805.4,1.27565424]
[1746654341699,11.55638798,1805.9,1805.5,6.84860614]
[1746654341877,11.55638798,1805.9,1805.6,5.99834166]
[1746654341878,5.53753001,1805.9,1805.6,5.99834166]
[1746654342079,5.53753001,1805.9,1805.6,6.05371798]
[1746654342304,11.07458954,1806.0,1805.6,6.05371798]
[1746654342492,11.07459065,1806.0,1805.7,0.7602]
[1746654342808,11.07459065,1806.0,1805.7,1.27565424]
[1746654343007,11.07459065,1806.0,1805.7,2.52593874]
[1746654343378,5.53724542,1806.0,1805.7,2.83505264]
[1746654343704,11.07460969,1806.0,1805.7,2.83505264]
[1746654343873,5.53724542,1806.0,1805.7,2.83505264]
[1746654344070,11.07458177,1806.0,1805.7,2.89042776]
[1746654344292,11.07458177,1806.0,1805.7,2.58131386]
[1746654344500,5.53724542,1806.0,1805.7,2.58131386]
[1746654345095,11.07458569,1806.0,1805.7,2.58131386]
[1746654345767,5.53724542,1806.0,1805.7,2.52593874]
[1746654346408,11.07463348,1806.0,1805.7,2.52593874]
[1746654346897,11.07463348,1806.0,1805.7,2.0104845]
[1746654347401,5.5375462,1805.9,1805.7,1.2502845]
[1746654347709,5.5375462,1805.9,1805.6,11.22732071]
[1746654350186,5.53724542,1806.0,1805.7,0.05537392]
[1746654350700,5.53724542,1806.0,1805.8,0.8327]
[1746654351616,5.53692506,1806.1,1805.8,0.8327]
[1746654351911,11.07400667,1806.1,1805.8,0.8327]
[1746654352116,11.0740108,1806.1,1805.8,0.8327]
[1746654352319,5.53720241,1806.0,1805.8,0.8327]
[1746654352615,5.53720241,1806.0,1805.8,1.46975881]
[1746654352820,5.53720241,1806.0,1805.6,6.5217]
[1746654352821,5.53756765,1805.9,1805.6,6.5217]
[1746654352990,5.53756765,1805.9,1805.7,0.5145776]
[1746654353194,5.53771181,1805.8,1805.7,0.82332498]
[1746654353583,6.36261181,1805.8,1805.7,0.82332498]
[1746654353994,5.53801849,1805.7,1805.6,5.688]
[1746654356026,5.94385386,1805.7,1805.6,5.688]
[1746654358138,5.53832521,1805.6,1805.5,3.70768586]
[1746654358735,5.53893873,1805.4,1805.3,6.33927959]
[1746654359238,5.53893873,1805.4,1805.3,6.6483755]
[1746654359543,0.40583537,1805.4,1805.3,6.6483755]
[1746654359710,0.40583537,1805.4,1805.3,7.16357617]
[1746654360112,0.40583537,1805.4,1805.3,6.85448026]
[1746654361226,0.40428842,1805.4,1805.3,6.85448026]
[1746654361394,0.40428842,1805.4,1805.3,7.66848026]
[1746654361598,5.53852599,1805.6,1805.3,7.66848026]
[1746654362241,0.40428842,1805.5,1805.3,7.66848026]
[1746654362735,0.40428842,1805.5,1805.4,0.51520067]
[1746654363539,0.40428842,1805.5,1805.4,1.2820487]
[1746654363739,0.40428842,1805.5,1805.4,10.1300427]
[1746654364111,5.53787878,1805.8,1805.5,5.53857075]
[1746654364535,5.53787878,1805.8,1805.6,0.30905527]
[1746654364853,5.53787878,1805.8,1805.6,0.82425594]
[1746654365007,5.53787878,1805.8,1805.6,1.46053861]
[1746654365758,5.5375948,1805.9,1805.7,5.667]
[1746654366043,0.1766187,1806.3,1806.1,0.814]
[1746654366245,0.1766187,1806.3,1806.1,6.481]
[1746654366405,0.1766187,1806.3,1806.1,6.53636035]
[1746654366605,0.1766187,1806.3,1806.2,0.65363604]
[1746654371236,0.58238018,1806.3,1806.2,0.65363604]
[1746654371440,0.1766187,1806.3,1806.2,0.65363604]
[1746654372011,0.1766187,1806.3,1806.2,1.20363604]
[1746654372545,0.1766187,1806.3,1806.2,6.74012147]
[1746654373347,0.1766187,1806.3,1806.2,0.65363604]
[1746654373549,5.71279762,1806.3,1806.2,0.65363604]
[1746654373722,0.58238018,1806.3,1806.1,5.667]
[1746654374335,6.11859802,1806.3,1806.1,5.667]
[1746654374741,0.58238018,1806.3,1806.1,5.667]
[1746654374940,6.11857512,1806.3,1806.1,5.667]
[1746654376316,0.58238018,1806.3,1806.1,5.667]
[1746654376656,0.58238018,1806.3,1806.2,0.5667]
[1746654377123,0.58238018,1806.3,1806.2,1.3243]
[1746654378955,0.58238018,1806.3,1806.2,7.41078543]
[1746654379133,0.58238018,1806.3,1806.2,7.46614241]
[1746654379326,0.1766187,1806.3,1806.2,7.71788153]
[1746654379652,0.1766187,1806.3,1806.2,13.35219927]
[1746654379844,0.1766187,1806.3,1806.2,13.29684911]
[1746654380044,0.1766187,1806.3,1806.2,13.80849705]
[1746654380563,0.1766187,1806.3,1806.2,14.32005319]
[1746654380960,0.1766187,1806.3,1806.2,21.68078519]
[1746654381148,0.1766187,1806.3,1806.2,19.26721805]
[1746654381538,0.1766187,1806.3,1806.2,17.55543705]
[1746654381734,0.1766187,1806.3,1806.2,16.35430805]
[1746654383361,0.1766187,1806.3,1806.2,16.86586261]
[1746654386374,5.53494734,1806.8,1806.5,3.55]
[1746654386570,5.53494734,1806.8,1806.6,6.019]
[1746654386757,0.41489184,1806.7,1806.6,6.019]
[1746654387375,5.94984506,1806.7,1806.6,6.019]
[1746654387883,0.41489184,1806.7,1806.6,11.5542596]
[1746654388038,6.35154941,1806.9,1806.6,11.5542596]
[1746654388241,0.41489184,1806.8,1806.7,1.15542596]
[1746654390643,5.94975103,1806.8,1806.6,6.019]
[1746654390978,5.94975103,1806.8,1806.6,5.664]
[1746654391478,6.33545322,1806.7,1806.6,5.664]
[1746654391642,6.75461323,1806.7,1806.6,5.664]
[1746654391843,1.21966001,1806.7,1806.6,5.664]
[1746654392258,0.41916001,1806.7,1806.6,6.54134967]
[1746654392454,5.53439334,1806.9,1806.6,13.28427666]
[1746654392659,0.41916001,1806.8,1806.6,13.22892699]
[1746654392837,11.06850264,1807.0,1806.6,13.22892699]
[1746654393041,5.95355074,1806.9,1806.6,13.22892699]
[1746654393343,6.33543515,1806.8,1806.6,5.664]
[1746654393644,0.8005,1806.8,1806.6,5.664]
[1746654393857,0.41916001,1806.7,1806.6,5.664]
[1746654394677,5.534526,1806.9,1806.6,6.6892111]
[1746654394878,0.41916001,1806.8,1806.6,6.6892111]
[1746654395181,0.41916001,1806.8,1806.6,7.45413292]
[1746654395484,0.8231,1806.7,1806.6,6.17665756]
[1746654395865,0.41916001,1806.7,1806.6,11.76726303]
[1746654396191,0.8231,1806.9,1806.6,12.5324648]
[1746654396478,6.35746199,1806.9,1806.6,12.01962032]
[1746654396682,0.41916001,1806.8,1806.6,6.48436072]
[1746654396844,5.95383553,1806.8,1806.6,6.48436072]
[1746654397176,5.95383553,1806.8,1806.6,5.664]
[1746654398586,0.41916001,1806.8,1806.6,5.664]
[1746654399258,0.41916001,1806.8,1806.6,12.01531436]
[1746654399471,0.41916001,1806.8,1806.7,1.71484079]
[1746654399765,0.41916001,1806.8,1806.7,0.51330935]
[1746654401394,0.41916001,1806.8,1806.7,9.56165809]
[1746654401550,0.41916001,1806.8,1806.7,4.02670487]
[1746654401750,5.5341272,1807.0,1806.7,1.33472852]
[1746654401951,0.41842434,1806.8,1806.7,1.33472852]
[1746654402151,5.5341272,1807.0,1806.7,1.33472852]
[1746654402371,0.41842434,1806.8,1806.7,2.58810738]
[1746654402545,5.5341272,1807.0,1806.7,2.58810738]
[1746654402756,5.5341272,1807.0,1806.8,0.51339552]
[1746654402975,5.5341272,1807.0,1806.8,1.02670487]
[1746654403686,5.5341272,1807.0,1806.8,1.33472852]
[1746654403842,5.5341272,1807.0,1806.8,2.14702374]
[1746654404351,5.5341272,1807.0,1806.8,1.83900009]
[1746654404681,5.5341272,1807.0,1806.8,1.32560457]
[1746654406494,6.29192032,1807.1,1806.8,1.6337895]
[1746654406666,6.29192032,1807.1,1806.8,0.82149428]
[1746654406865,11.82590839,1807.1,1806.8,0.82149428]
[1746654407486,11.82590839,1807.1,1806.8,0.30818493]
[1746654407655,5.5340426,1807.0,1806.8,0.30818493]
[1746654408891,5.5340426,1807.0,1806.9,1.02803861]
[1746654410487,5.5340426,1807.0,1806.9,0.51401918]
[1746654410694,5.53434058,1806.9,1806.8,0.82220436]
[1746654410993,5.5340426,1807.0,1806.8,0.51401943]
[1746654411598,5.5340426,1807.0,1806.7,5.663]
[1746654411757,5.5340426,1807.0,1806.8,0.30864976]
[1746654413288,5.5340426,1807.0,1806.9,0.51458283]
[1746654414501,6.3127426,1807.0,1806.9,0.51458283]
[1746654414669,0.7787,1807.0,1806.9,0.51458283]
[1746654414991,6.31273431,1807.0,1806.9,0.51458283]
[1746654415297,6.31273431,1807.0,1806.9,1.02916073]
[1746654416174,6.73189432,1807.0,1806.9,1.02916073]
[1746654417611,1.19786001,1807.0,1806.9,1.02916073]
[1746654418887,0.41916001,1807.0,1806.9,1.02916073]
[1746654419394,0.41916001,1807.0,1806.9,1.33796993]
[1746654419762,5.95319432,1807.0,1806.9,1.33796993]
[1746654420197,5.95319432,1807.0,1806.9,1.02916073]
[1746654420359,5.95319432,1807.0,1806.9,0.5145779]
[1746654420990,5.95319432,1807.0,1806.7,5.663]
[1746654421186,5.95319432,1807.0,1806.7,6.86036434]
[1746654421390,5.95319432,1807.0,1806.8,0.30881295]
[1746654422695,5.95319432,1807.0,1806.9,0.51472571]
[1746654423168,5.95319432,1807.0,1806.9,1.02943402]
[1746654423992,5.95319432,1807.0,1806.9,1.02939914]
[1746654425204,5.95319432,1807.0,1806.9,1.33822303]
[1746654426108,5.95319432,1807.0,1806.9,1.02939914]
[1746654426697,5.95319432,1807.0,1806.9,0.51469083]
[1746654429103,5.95319432,1807.0,1806.9,1.27149083]
[1746654430011,5.95319432,1807.0,1806.9,1.58013861]
[1746654432630,0.41916001,1807.0,1806.9,1.58013861]
[1746654433782,0.41916001,1807.0,1806.9,2.30425247]
[1746654434598,0.41916001,1807.0,1806.9,1.54745247]
[1746654434791,0.41916001,1807.0,1806.9,0.82333861]
[1746654440214,5.95319432,1807.0,1806.9,0.82333861]
[1746654440616,6.71669432,1807.0,1806.9,0.82333861]
[1746654446517,5.95319432,1807.0,1806.9,0.82333861]
[1746654459438,5.95319432,1807.0,1806.9,1.60576385]
[1746654466037,0.41916001,1807.0,1806.9,2.33244024]
[1746654469144,5.53360566,1807.2,1806.9,7.86678082]
[1746654469345,0.38828536,1807.1,1806.9,7.86678082]
[1746654469642,0.38828536,1807.1,1806.9,7.55813304]
[1746654469948,0.38828536,1807.1,1807.0,0.51431607]
[1746654472242,0.38828536,1807.1,1807.0,0.82281808]
[1746654473215,0.38828536,1807.1,1807.0,1.60947636]
[1746654474333,11.06660234,1807.3,1807.0,1.60947636]
[1746654474556,0.38828536,1807.2,1807.1,0.51431607]
[1746654474966,11.06589665,1807.4,1807.1,0.51431607]
[1746654475151,5.9218552,1807.3,1807.1,0.51431607]
[1746654475350,5.9218552,1807.3,1807.1,1.19781442]
[1746654475551,5.9218552,1807.3,1807.1,0.68349835]
[1746654476346,0.38872786,1807.3,1807.1,0.68349835]
[1746654476647,5.53286381,1807.4,1807.1,0.68349835]
[1746654477144,0.38872786,1807.3,1807.1,0.68349835]
[1746654477317,6.29589636,1807.5,1807.1,6.21713288]
[1746654477518,5.92163572,1807.4,1807.2,0.62171329]
[1746654477911,11.45469577,1807.4,1807.2,0.62171329]
[1746654478249,5.53313873,1807.3,1807.1,0.68349835]
[1746654478813,0.38872786,1807.2,1807.1,0.68349835]
[1746654479450,0.38872786,1807.2,1807.1,0.99145487]
[1746654479617,0.38872786,1807.2,1807.1,1.50471613]
[1746654480015,5.92214972,1807.2,1807.1,1.50471613]
[1746654480366,6.70514972,1807.2,1807.1,0.51326126]
[1746654480823,5.53372807,1807.1,1807.0,0.30795652]
[1746654481013,8.15577518,1807.1,1807.0,0.30795652]
[1746654481326,5.53403431,1807.0,1806.9,3.70768586]
[1746654481538,14.95566134,1807.0,1806.9,3.70768586]
[1746654483826,17.53181899,1807.0,1806.9,3.70768586]
[1746654486264,5.53593457,1806.4,1806.2,5.657]
[1746654486637,0.38644106,1806.3,1806.2,5.657]
[1746654486840,0.38644106,1806.3,1806.2,6.2227]
[1746654487041,5.53593457,1806.4,1806.2,6.2227]
[1746654487239,11.072043,1806.4,1806.0,9.32467183]
[1746654487443,5.92269893,1806.3,1806.0,14.97767183]
[1746654487653,5.92269893,1806.3,1806.1,0.30756757]
[1746654488266,5.92269893,1806.3,1806.0,6.4408]
[1746654488863,5.53663522,1806.2,1806.0,6.4408]
[1746654489071,5.53663522,1806.2,1806.0,5.653]
[1746654489240,0.38260522,1806.1,1806.0,5.653]
[1746654489643,5.53663522,1806.2,1806.0,5.653]
[1746654489865,0.38260522,1806.1,1806.0,5.653]
[1746654490676,5.53663522,1806.2,1806.0,6.29432]
[1746654490878,0.38260522,1806.1,1806.0,6.29432]
[1746654491377,5.53663522,1806.2,1806.0,6.29432]
[1746654491575,0.38260522,1806.1,1806.0,6.29432]
[1746654491747,5.53663522,1806.2,1806.0,6.29432]
[1746654491948,0.38260522,1806.1,1806.0,5.653]
[1746654492170,5.53663522,1806.2,1806.0,5.653]
[1746654492485,0.38098185,1806.1,1806.0,5.653]
[1746654493178,5.53709856,1806.0,1805.9,0.7602]
[1746654493389,5.53740517,1805.9,1805.8,5.654]
[1746654493560,5.91801802,1805.9,1805.8,5.654]
[1746654495899,0.38061285,1805.9,1805.8,5.654]
[1746654496094,0.38061285,1805.9,1805.8,15.10376946]
[1746654496454,5.5369285,1806.1,1805.8,9.56605765]
[1746654496653,0.37913664,1805.9,1805.8,9.56605765]
[1746654497206,11.07395026,1806.1,1805.8,6.9899]
[1746654497484,5.91623781,1806.0,1805.8,6.9899]
[1746654498491,5.91623781,1806.0,1805.8,6.4245]
[1746654498864,5.91632572,1806.0,1805.8,6.4245]
[1746654499069,5.53740517,1805.9,1805.8,5.654]
[1746654499457,5.91373722,1805.9,1805.8,5.654]
[1746654499794,0.37633205,1805.9,1805.8,5.654]
[1746654500286,6.3090473,1806.1,1805.8,5.654]
[1746654500454,0.37625823,1805.9,1805.8,6.4245]
[1746654500657,5.5369473,1806.1,1805.8,7.54368703]
[1746654500892,0.37603677,1805.9,1805.8,13.08131055]
[1746654501088,5.5369473,1806.1,1805.8,13.08131055]
[1746654501269,0.37603677,1805.9,1805.8,13.08131055]
[1746654501471,5.5369473,1806.1,1805.8,13.08131055]
[1746654501666,0.37603677,1805.9,1805.8,13.08131055]
[1746654501874,5.5369473,1806.1,1805.8,6.4245]
[1746654502080,0.37603677,1805.9,1805.8,6.4245]
[1746654502273,5.5369473,1806.1,1805.8,6.4245]
[1746654502613,5.53718346,1806.0,1805.8,5.654]
[1746654502789,0.37618441,1805.9,1805.8,5.654]
[1746654503776,5.91358958,1805.9,1805.8,5.654]
[1746654505344,0.37618441,1805.9,1805.8,5.654]
[1746654507026,5.91358958,1805.9,1805.8,5.654]
[1746654507524,0.37618441,1805.9,1805.8,6.2194]
[1746654507688,0.37618441,1805.9,1805.8,10.5199]
[1746654507894,5.53576044,1806.5,1806.2,0.7505]
[1746654508338,0.34385265,1806.4,1806.2,0.7505]
[1746654509407,6.36555533,1806.3,1805.9,0.7505]
[1746654509636,5.53684711,1806.1,1805.9,0.7505]
[1746654509948,5.53663035,1806.2,1805.9,1.05868645]
[1746654510303,0.34385265,1806.1,1805.9,1.05868645]
[1746654510638,5.53663035,1806.2,1805.9,1.05868645]
[1746654510940,0.34385265,1806.0,1805.9,1.05868645]
[1746654511142,5.53663035,1806.2,1805.9,1.05868645]
[1746654511512,0.34518449,1806.1,1805.9,1.05868645]
[1746654511810,5.53663035,1806.2,1805.9,1.05868645]
[1746654512121,0.34503652,1806.1,1805.9,0.30818645]
[1746654512324,6.36629856,1806.0,1805.9,0.30818645]
[1746654512841,6.71133508,1806.0,1805.9,0.30818645]
[1746654513139,5.53740517,1805.9,1805.8,5.655]
[1746654513438,6.36629856,1806.0,1805.8,5.655]
[1746654513640,0.34503652,1805.9,1805.8,5.655]
[1746654514435,0.34503652,1805.9,1805.8,5.96333006]
[1746654515338,0.34503652,1805.9,1805.8,5.655]
[1746654516602,0.34503652,1805.9,1805.8,5.96335142]
[1746654517033,0.34503652,1805.9,1805.8,6.74885142]
[1746654517235,0.34503652,1805.9,1805.8,12.96144837]
[1746654517442,5.53687807,1806.1,1805.9,0.7855]
[1746654517603,5.53687807,1806.1,1805.9,3.36165765]
[1746654517934,5.53665517,1806.2,1805.9,3.36165765]
[1746654518337,5.53665517,1806.2,1805.9,8.89894199]
[1746654518516,5.53665517,1806.2,1805.9,11.00641083]
[1746654520940,0.34289059,1806.1,1805.9,11.00641083]
[1746654521142,5.53665517,1806.2,1805.9,11.00641083]
[1746654521341,0.34289059,1806.1,1805.9,11.00641083]
[1746654521531,5.53665517,1806.2,1805.9,11.00641083]
[1746654521861,0.34289059,1806.1,1805.9,11.00641083]
[1746654522142,5.53665517,1806.2,1805.9,11.00641083]
[1746654522302,0.34289059,1806.1,1805.9,11.00641083]
[1746654522502,5.53665517,1806.2,1805.9,11.00641083]
[1746654522710,0.34281659,1806.1,1805.9,11.00641083]
[1746654522908,5.53665517,1806.2,1805.9,11.00641083]
[1746654523115,0.34281659,1806.1,1805.9,11.00641083]
[1746654523440,5.53631387,1806.3,1806.0,6.63773964]
[1746654523441,5.5363777,1806.3,1806.0,6.63773964]
[1746654523618,0.34281659,1806.2,1806.0,5.53709856]
[1746654525155,0.34281659,1806.2,1805.9,16.54350127]
[1746654525554,0.34281659,1806.2,1805.9,11.00631099]
[1746654525846,0.34281659,1806.2,1806.0,0.30868961]
[1746654526350,0.34281659,1806.2,1806.0,5.84572374]
[1746654526646,0.34281659,1806.2,1806.0,7.53092721]
[1746654527153,0.34281659,1806.2,1806.0,7.2222376]
[1746654527551,0.34281659,1806.2,1805.8,5.655]
[1746654527552,5.53679198,1806.1,1805.8,5.655]
[1746654527755,5.53679198,1806.1,1805.9,0.30868095]
[1746654527956,0.34281659,1806.0,1805.9,0.30868095]
[1746654531544,5.87991515,1806.0,1805.9,0.30868095]
[1746654531740,6.69531515,1806.0,1805.9,0.30868095]
[1746654531960,7.91852586,1806.0,1805.9,0.30868095]
[1746654532267,5.53771181,1805.8,1805.7,3.70768586]
[1746654532770,5.88134246,1805.8,1805.7,4.01662648]
[1746654533336,5.88134246,1805.8,1805.7,3.70768586]
[1746654534245,5.88134246,1805.8,1805.7,4.01662648]
[1746654534437,0.34363065,1805.8,1805.7,4.01662648]
[1746654534666,0.34363065,1805.8,1805.7,3.70768586]
[1746654535670,0.34363065,1805.8,1805.7,4.01662648]
[1746654535968,0.34363065,1805.8,1805.7,5.76251414]
[1746654536177,11.87385484,1806.1,1805.7,16.95153263]
[1746654536363,0.34089242,1806.0,1805.7,16.95153263]
[1746654536675,0.34089242,1806.0,1805.8,0.30894062]
[1746654537041,5.53661001,1806.2,1805.9,0.7904]
[1746654537377,11.55521066,1806.3,1805.9,12.7862701]
[1746654537378,0.34089242,1806.1,1805.9,12.7862701]
[1746654537573,11.07205402,1806.4,1805.9,7.24887571]
[1746654537755,0.34089242,1806.3,1806.0,5.84595103]
[1746654537955,5.5361965,1806.3,1806.1,5.651]
[1746654538154,0.34089242,1806.2,1806.1,5.651]
[1746654538354,0.34089242,1806.2,1806.1,6.8006951]
[1746654540778,0.34281654,1806.2,1806.1,6.8006951]
[1746654540957,5.53592829,1806.4,1806.1,6.8006951]
[1746654541160,0.34281654,1806.3,1806.1,5.651]
[1746654541349,5.53592829,1806.4,1806.1,5.651]
[1746654541677,0.34281654,1806.3,1806.1,5.651]
[1746654542077,11.07208329,1806.4,1806.1,5.651]
[1746654542247,0.34281654,1806.2,1806.1,5.651]
[1746654542446,11.07208329,1806.4,1806.1,7.07843591]
[1746654542681,0.34281654,1806.2,1806.1,7.07843591]
[1746654542870,11.07208329,1806.4,1806.1,7.07843591]
[1746654543079,0.34303852,1806.2,1806.1,5.651]
[1746654543270,11.07208329,1806.4,1806.1,5.651]
[1746654543471,0.34303852,1806.2,1806.1,5.651]
[1746654543772,11.07208329,1806.4,1806.1,5.651]
[1746654543949,0.34303852,1806.3,1806.1,5.651]
[1746654544283,11.07208329,1806.4,1806.1,6.76978815]
[1746654544487,0.34303852,1806.2,1806.1,6.76978815]